[Event "1st Bangalore GM-Open-B 2024"]
[Site "Bangalore"]
[Date "2024.01.18"]
[Round "2.2"]
[White "Parthasarathy A G"]
[Black "Samyak Dharewa"]
[Result "0-1"]
[ECO "B41"]
[WhiteElo "1409"]
[BlackElo "1972"]
[Annotator "RC"]
[PlyCount "134"]
[EventDate "2024.01.20"]
[EventType "swiss"]
[EventCountry "IND"]
[SourceTitle "playchess.com"]
[Source "ChessBase"]
[SourceQuality "1"]
[TimeControl "3600+30"]

1. e4 {[%emt 0:00:04]} c5 {[%emt 0:00:02]} 2. Nf3 {[%emt 0:00:12]} e6 {[%emt 0:00:02]} 3. d4 {[%emt 0:01:06]} cxd4 {[%emt 0:00:03]} 4. Nxd4 {[%emt 0:00:12]} a6 {[%emt 0:00:02]} 5. Be2 {[%emt 0:00:48]} Nf6 {[%emt 0:00:58]} 6. Bf3 {[%emt 0:00:45]} e5 {[%emt 0:05:41]} 7. Nb3 {[%emt 0:01:07]} d6 {[%emt 0:03:56]} 8. O-O {[%emt 0:00:42]} Be7 {[%emt 0:00:10]} 9. Nc3 {[%emt 0:01:28]} O-O {[%emt 0:00:11]} 10. Bg5 {[%emt 0:04:02]} Nc6 {[%emt 0:00:39]} 11. Bxf6 {[%emt 0:01:46]} Bxf6 {[%emt 0:00:06]} 12. Nd5 {[%emt 0:00:23]} Bg5 {[%emt 0:00:37]} 13. Bg4 {[%emt 0:02:26]} Be6 {[%emt 0:00:33]} 14. f4 {[%emt 0:02:44]} exf4 {[%emt 0:00:59]} 15. Nxf4 {[%emt 0:01:17]} Bxf4 {[%emt 0:01:57]} 16. Rxf4 {[%emt 0:00:57]} Qg5 {[%emt 0:00:11]} 17. g3 {[%emt 0:01:15]} Ne5 {[%emt 0:08:34]} 18. Be2 {[%emt 0:03:25]} Ng6 {[%emt 0:01:13]} 19. Rf2 {[%emt 0:01:18]} Qe5 {[%emt 0:00:22]} 20. Qd4 {[%emt 0:01:23]} Rac8 {[%emt 0:06:08]} 21. c3 {[%emt 0:02:43]} Rfd8 {[%emt 0:05:03]} 22. Rd1 {[%emt 0:03:26]} f6 {[%emt 0:01:22]} 23. Bf3 {[%emt 0:04:53]} Bxb3 {[%emt 0:02:08]} 24. axb3 {[%emt 0:00:13]} Qxd4 {[%emt 0:00:06]} 25. Rxd4 {[%emt 0:00:41]} Ne5 {[%emt 0:00:18]} 26. Kg2 {[%emt 0:01:02]} Kf8 {[%emt 0:00:08]} 27. Rfd2 {[%emt 0:01:28]} Ke7 {[%emt 0:00:06]} 28. h3 {[%emt 0:01:29]} Rc6 {[%emt 0:00:29]} 29. Be2 {[%emt 0:01:04]} b5 {[%emt 0:01:55]} 30. Bf3 {[%emt 0:01:21]} Rh8 {[%emt 0:02:17]} 31. Be2 {[%emt 0:02:11]} h5 {[%emt 0:01:20]} 32. Bf3 {[%emt 0:02:15]} h4 {[%emt 0:00:23]} 33. Bg4 {[%emt 0:04:36]} hxg3 {[%emt 0:01:31]} 34. Kxg3 {[%emt 0:00:12]} Ra8 {[%emt 0:00:05]} 35. Be2 {[%emt 0:01:02]} Rh8 {[%emt 0:00:38]} 36. Bg4 {[%emt 0:01:06]} Rb6 {[%emt 0:00:35]} 37. Be2 {[%emt 0:00:43]} Nf7 {[%emt 0:00:50]} 38. Rb4 {[%emt 0:03:39]} Ne5 {[%emt 0:01:41]} 39. Rbd4 {[%emt 0:03:11]} Nf7 {[%emt 0:01:49]} 40. Rb4 {[%emt 0:00:26]} Rbb8 {[%emt 0:00:13]} 41. Rbd4 {[%emt 0:00:59]} Rhd8 {[%emt 0:00:14]} 42. Bg4 {[%emt 0:01:06]} Ne5 {[%emt 0:00:07]} 43. Be2 {[%emt 0:00:52]} Rb6 {[%emt 0:00:01]} 44. Bg4 {[%emt 0:01:34]} Rc6 {[%emt 0:03:49]} 45. Be2 {[%emt 0:00:27]} Rc5 {[%emt 0:00:06]} 46. Bg4 {[%emt 0:01:33]} Nc6 {[%emt 0:00:17]} 47. b4 {[%emt 0:03:59]} Nxd4 {[%emt 0:02:20]} 48. bxc5 {[%emt 0:00:14]} Nb3 {[%emt 0:00:05]} 49. cxd6+ {[%emt 0:00:56]} Rxd6 {[%emt 0:00:07]} 50. Re2 {[%emt 0:00:33]} Nc1 {[%emt 0:01:08]} 51. Rc2 {[%emt 0:01:02]} Nd3 {[%emt 0:00:07]} 52. Rd2 {[%emt 0:00:44]} Nc5 {[%emt 0:01:17]} 53. Re2 {[%emt 0:00:24]} Nd3 {[%emt 0:00:02]} 54. Rd2 {[%emt 0:00:19]} Ne5 {[%emt 0:00:01]} 55. Rxd6 {[%emt 0:01:51]} Kxd6 {[%emt 0:00:02]} 56. b3 {[%emt 0:00:29]} a5 {[%emt 0:01:30]} 57. Be2 {[%emt 0:00:33]} a4 {[%emt 0:00:19]} 58. bxa4 {[%emt 0:01:31]} bxa4 {[%emt 0:00:02]} 59. Bd1 {[%emt 0:00:18]} a3 {[%emt 0:00:04]} 60. Bb3 {[%emt 0:00:28]} Nd3 {[%emt 0:00:13]} 61. Kg4 {[%emt 0:01:06]} Ke5 {[%emt 0:00:17]} 62. Kh5 {[%emt 0:00:51]} Nf4+ {[%emt 0:01:10]} 63. Kg4 {[%emt 0:00:26]} Kxe4 {[%emt 0:00:00]} 64. c4 {[%emt 0:00:12]} Nd3 {[%emt 0:00:00]} 65. Kh5 {[%emt 0:00:23]} f5 {[%emt 0:00:00]} 66. Kg6 {[%emt 0:00:33]} f4 {[%emt 0:00:00]} 67. Kxg7 {[%emt 0:01:12]} f3 {[%emt 0:00:00]} 0-1

[Event "1st Bangalore GM-Open-B 2024"]
[Site "Bangalore"]
[Date "2024.01.18"]
[Round "2.3"]
[White "Nadkarni, Ishan"]
[Black "Vashishtha Ankesh"]
[Result "1-0"]
[ECO "B22"]
[WhiteElo "1968"]
[BlackElo "1412"]
[Annotator "RC"]
[PlyCount "97"]
[EventDate "2024.01.20"]
[EventType "swiss"]
[EventCountry "IND"]
[SourceTitle "playchess.com"]
[Source "ChessBase"]
[SourceQuality "1"]
[TimeControl "3600+30"]

1. e4 {[%emt 0:00:51]} c5 {[%emt 0:00:05]} 2. Nf3 {[%emt 0:01:04]} Nc6 {[%emt 0:00:07]} 3. c3 {[%emt 0:00:11]} Nf6 {[%emt 0:00:49]} 4. e5 {[%emt 0:02:52]} Nd5 {[%emt 0:00:10]} 5. Bc4 {[%emt 0:00:47]} Nb6 {[%emt 0:00:07]} 6. Bb3 {[%emt 0:00:06]} d6 {[%emt 0:02:07]} 7. exd6 {[%emt 0:02:48]} Qxd6 {[%emt 0:00:08]} 8. O-O {[%emt 0:00:09]} g6 {[%emt 0:00:49]} 9. d4 {[%emt 0:03:42]} cxd4 {[%emt 0:00:50]} 10. Ng5 {[%emt 0:04:03]} e6 {[%emt 0:04:42]} 11. Qf3 {[%emt 0:02:41]} Ne5 {[%emt 0:03:05]} 12. Qf6 {[%emt 0:02:54]} Rg8 {[%emt 0:01:25]} 13. Ne4 {[%emt 0:01:30]} Qc7 {[%emt 0:01:29]} 14. Bf4 {[%emt 0:03:38]} Bg7 {[%emt 0:02:07]} 15. Qg5 {[%emt 0:00:34]} Qe7 {[%emt 0:04:43]} 16. Qg3 {[%emt 0:03:35]} f6 {[%emt 0:05:03]} 17. cxd4 {[%emt 0:00:20]} Nf7 {[%emt 0:01:18]} 18. Nd6+ {[%emt 0:02:07]} Kf8 {[%emt 0:02:53]} 19. Nxf7 {[%emt 0:03:10]} Kxf7 {[%emt 0:00:14]} 20. Bd6 {[%emt 0:01:22]} Qd8 {[%emt 0:03:43]} 21. Re1 {[%emt 0:01:59]} Re8 {[%emt 0:01:52]} 22. Nc3 {[%emt 0:01:21]} Bd7 {[%emt 0:00:25]} 23. Bc7 {[%emt 0:02:05]} Qc8 {[%emt 0:05:39]} 24. Ne4 {[%emt 0:00:47]} Bf8 {[%emt 0:00:37]} 25. Qf4 {[%emt 0:02:02]} Be7 {[%emt 0:06:25]} 26. Rac1 {[%emt 0:03:10]} Nd5 {[%emt 0:00:00]} 27. Bxd5 {[%emt 0:00:19]} exd5 {[%emt 0:00:00]} 28. Bd6 {[%emt 0:02:42]} Qd8 {[%emt 0:03:22]} 29. Bxe7 {[%emt 0:00:19]} Rxe7 {[%emt 0:00:29]} 30. Nd6+ {[%emt 0:01:21]} Kg8 {[%emt 0:02:44]} 31. Nxb7 {[%emt 0:00:25]} Qf8 {[%emt 0:06:33]} 32. Nc5 {[%emt 0:03:00]} Rae8 {[%emt 0:02:22]} 33. Rxe7 {[%emt 0:00:40]} Qxe7 {[%emt 0:00:14]} 34. h3 {[%emt 0:00:21]} Bf5 {[%emt 0:02:46]} 35. g4 {[%emt 0:01:43]} Bc8 {[%emt 0:02:03]} 36. Qf3 {[%emt 0:00:21]} Qd6 {[%emt 0:03:02]} 37. Kg2 {[%emt 0:01:02]} f5 {[%emt 0:00:13]} 38. g5 {[%emt 0:00:25]} f4 {[%emt 0:01:08]} 39. Nd3 {[%emt 0:01:14]} Rf8 {[%emt 0:02:42]} 40. Ne5 {[%emt 0:00:14]} Bf5 {[%emt 0:00:15]} 41. Qc3 {[%emt 0:00:59]} f3+ {[%emt 0:00:52]} 42. Kg3 {[%emt 0:01:21]} Rc8 {[%emt 0:01:16]} 43. Qd2 {[%emt 0:01:01]} Re8 {[%emt 0:00:33]} 44. Qf4 {[%emt 0:01:37]} Rf8 {[%emt 0:00:23]} 45. Qe3 {[%emt 0:01:49]} Qe6 {[%emt 0:00:38]} 46. Rc6 {[%emt 0:00:14]} Qe7 {[%emt 0:00:16]} 47. h4 {[%emt 0:00:25]} Qb4 {[%emt 0:00:34]} 48. Ng4 {[%emt 0:04:49]} Qb5 {[%emt 0:00:40]} 49. Nh6+ {[%emt 0:00:30]} 1-0

[Event "1st Bangalore GM-Open-B 2024"]
[Site "Bangalore"]
[Date "2024.01.18"]
[Round "2.4"]
[White "Adrij Bhattacharyya"]
[Black "Selvamurugan B"]
[Result "0-1"]
[ECO "D01"]
[WhiteElo "1405"]
[BlackElo "1920"]
[Annotator "RC"]
[PlyCount "86"]
[EventDate "2024.01.20"]
[EventType "swiss"]
[EventCountry "IND"]
[SourceTitle "playchess.com"]
[Source "ChessBase"]
[SourceQuality "1"]
[TimeControl "3600+30"]

1. d4 {[%emt 0:00:03]} Nf6 {[%emt 0:00:15]} 2. Bf4 {[%emt 0:00:05]} g6 {[%emt 0:00:04]} 3. Nc3 {[%emt 0:00:53]} d5 {[%emt 0:00:06]} 4. Qd2 {[%emt 0:00:14]} Bg7 {[%emt 0:00:29]} 5. Bh6 {[%emt 0:01:21]} O-O {[%emt 0:01:50]} 6. Bxg7 {[%emt 0:00:31]} Kxg7 {[%emt 0:00:01]} 7. e3 {[%emt 0:01:50]} a5 {[%emt 0:02:16]} 8. Nf3 {[%emt 0:01:18]} a4 {[%emt 0:00:05]} 9. a3 {[%emt 0:00:17]} c6 {[%emt 0:02:16]} 10. Bd3 {[%emt 0:00:21]} Nbd7 {[%emt 0:01:08]} 11. O-O {[%emt 0:01:06]} Qc7 {[%emt 0:00:23]} 12. Rfe1 {[%emt 0:04:05]} e5 {[%emt 0:03:42]} 13. Nxe5 {[%emt 0:00:28]} Nxe5 {[%emt 0:00:02]} 14. dxe5 {[%emt 0:00:07]} Qxe5 {[%emt 0:00:03]} 15. e4 {[%emt 0:00:41]} Ng4 {[%emt 0:02:28]} 16. g3 {[%emt 0:02:08]} d4 17. Nd1 {[%emt 0:01:58]} Qh5 {[%emt 0:09:26]} 18. f4 {[%emt 0:00:08]} c5 {[%emt 0:03:32]} 19. Qg2 {[%emt 0:04:55]} Rd8 {[%emt 0:06:02]} 20. h3 {[%emt 0:14:19]} Nf6 {[%emt 0:03:07]} 21. Nf2 {[%emt 0:06:47]} Rb8 {[%emt 0:01:07]} 22. g4 {[%emt 0:04:30]} Qh4 {[%emt 0:00:07]} 23. Bb5 {[%emt 0:00:42]} b6 {[%emt 0:02:23]} 24. Bc6 {[%emt 0:08:40]} Bd7 {[%emt 0:11:14]} 25. Bxd7 {[%emt 0:00:59]} Nxd7 {[%emt 0:00:14]} 26. e5 {[%emt 0:00:24]} c4 {[%emt 0:00:23]} 27. Ne4 {[%emt 0:03:27]} Nc5 {[%emt 0:00:22]} 28. Nd6 {[%emt 0:02:24]} d3 {[%emt 0:00:48]} 29. cxd3 {[%emt 0:01:31]} cxd3 {[%emt 0:00:11]} 30. Re3 {[%emt 0:00:43]} Qe7 {[%emt 0:01:02]} 31. g5 {[%emt 0:01:52]} Rxd6 {[%emt 0:00:18]} 32. exd6 {[%emt 0:01:33]} Qxe3+ {[%emt 0:00:02]} 33. Kh1 {[%emt 0:00:07]} d2 {[%emt 0:00:21]} 34. Rf1 {[%emt 0:00:30]} Re8 {[%emt 0:00:45]} 35. f5 {[%emt 0:00:45]} Qe1 {[%emt 0:00:34]} 36. Qf3 {[%emt 0:00:00]} Qxf1+ {[%emt 0:00:09]} 37. Qxf1 {[%emt 0:00:00]} Re1 {[%emt 0:00:04]} 38. Qxe1 {[%emt 0:00:07]} dxe1=Q+ {[%emt 0:00:02]} 39. Kg2 {[%emt 0:00:10]} Qe2+ {[%emt 0:00:10]} 40. Kg1 {[%emt 0:00:05]} Ne4 {[%emt 0:00:04]} 41. f6+ {[%emt 0:00:06]} Kf8 {[%emt 0:00:06]} 42. d7 {[%emt 0:00:04]} Qf2+ {[%emt 0:00:06]} 43. Kh1 {[%emt 0:00:03]} Ng3# {[%emt 0:00:04]} 0-1

[Event "1st Bangalore GM-Open-B 2024"]
[Site "Bangalore"]
[Date "2024.01.18"]
[Round "2.5"]
[White "Parigyan Chakraborty"]
[Black "Nigash G"]
[Result "0-1"]
[ECO "B34"]
[WhiteElo "1404"]
[BlackElo "1887"]
[Annotator "NA RC"]
[PlyCount "100"]
[EventDate "2024.01.20"]
[EventType "swiss"]
[EventCountry "IND"]
[SourceTitle "playchess.com"]
[Source "ChessBase"]
[SourceQuality "1"]
[TimeControl "3600+30"]

1. e4 {[%emt 0:00:15]} c5 {[%emt 0:00:06]} 2. Nf3 {[%emt 0:00:26]} Nc6 {[%emt 0:00:17]} 3. d4 {[%emt 0:00:39]} cxd4 {[%emt 0:00:07]} 4. Nxd4 {[%emt 0:00:06]} g6 {[%emt 0:00:04]} 5. Nc3 {[%emt 0:00:37]} Bg7 {[%emt 0:00:11]} 6. Be3 {[%emt 0:00:19]} Nf6 {[%emt 0:00:09]} 7. Nxc6 {[%emt 0:01:02]} bxc6 {[%emt 0:00:05]} 8. e5 {[%emt 0:00:08]} Ng8 {[%emt 0:00:05]} 9. f4 {[%emt 0:00:28]} Nh6 {[%emt 0:01:39]} 10. Be2 {[%emt 0:04:00]} Nf5 {[%emt 0:01:04]} 11. Bf2 {[%emt 0:00:45]} d6 {[%emt 0:05:36]} 12. Bf3 {[%emt 0:05:07]} Qc7 {[%emt 0:02:30]} 13. g4 {[%emt 0:02:04]} Nh6 {[%emt 0:01:01]} 14. exd6 {[%emt 0:00:16]} exd6 {[%emt 0:00:48]} 15. O-O {[%emt 0:00:38]} O-O {[%emt 0:00:28]} 16. Nb5 {[%emt 0:04:05]} cxb5 {[%emt 0:00:03]} 17. Bxa8 {[%emt 0:00:08]} Bxg4 {[%emt 0:00:04]} 18. Bf3 {[%emt 0:00:08]} Bxf3 {[%emt 0:00:18]} 19. Qxf3 {[%emt 0:00:06]} Qxc2 20. Qd1 {[%emt 0:02:43]} Qxb2 {[%emt 0:00:17]} 21. Qxd6 {[%emt 0:02:09]} Ng4 {[%emt 0:05:45]} 22. Rab1 {[%emt 0:05:03]} Qxa2 {[%emt 0:01:07]} 23. Rxb5 {[%emt 0:00:10]} Qe2 {[%emt 0:06:00]} 24. Rb8 {[%emt 0:03:49]} Nxh2 {[%emt 0:01:06]} 25. Rfb1 {[%emt 0:04:29]} Nf3+ {[%emt 0:01:52]} 26. Kg2 {[%emt 0:00:05]} Nd2 {[%emt 0:01:06]} 27. Rxf8+ {[%emt 0:05:54]} Bxf8 {[%emt 0:00:05]} 28. Rb8 {[%emt 0:00:05]} Qf1+ {[%emt 0:03:27]} 29. Kh2 {[%emt 0:00:19]} Qxf2+ {[%emt 0:00:21]} 30. Kh1 {[%emt 0:01:00]} Qe1+ {[%emt 0:08:22]} 31. Kg2 {[%emt 0:01:29]} Qe4+ {[%emt 0:14:15]} 32. Kh2 {[%emt 0:01:56]} Qe2+ {[%emt 0:00:59]} 33. Kh1 {[%emt 0:01:13]} Qh5+ {[%emt 0:02:28]} 34. Kg2 {[%emt 0:02:40]} Qh6 {[%emt 0:07:43]} 35. Qxd2 {[%emt 0:00:10]} Qg7 {[%emt 0:00:31]} 36. Qd8 {[%emt 0:04:26]} h5 {[%emt 0:00:35]} 37. Ra8 {[%emt 0:00:18]} Qb2+ {[%emt 0:00:06]} 38. Kh3 {[%emt 0:00:55]} Qa3+ {[%emt 0:00:16]} 39. Kg2 {[%emt 0:00:24]} Qc5 {[%emt 0:00:37]} 40. Rc8 {[%emt 0:01:09]} Qb4 {[%emt 0:00:06]} 41. Ra8 {[%emt 0:00:52]} Kg7 {[%emt 0:00:47]} 42. Rb8 {[%emt 0:00:47]} Qd6 {[%emt 0:00:13]} 43. Qe8 {[%emt 0:01:02]} Qe7 {[%emt 0:01:37]} 44. Qc8 {[%emt 0:00:43]} Qe4+ {[%emt 0:00:43]} 45. Kg3 {[%emt 0:00:32]} h4+ {[%emt 0:00:25]} 46. Kh2 {[%emt 0:06:52]} Qxf4+ {[%emt 0:00:35]} 47. Kg2 {[%emt 0:00:20]} h3+ {[%emt 0:00:26]} 48. Kxh3 {[%emt 0:00:49]} Qf3+ {[%emt 0:00:06]} 49. Kh2 {[%emt 0:00:06]} Bd6+ {[%emt 0:00:05]} 50. Kg1 {[%emt 0:00:03]} Qg3+ {[%emt 0:00:05]} 0-1

[Event "1st Bangalore GM-Open-B 2024"]
[Site "Bangalore"]
[Date "2024.01.19"]
[Round "3.1"]
[White "Nayak, Biswajit"]
[Black "Shubh Kapur"]
[Result "0-1"]
[ECO "A13"]
[WhiteElo "1990"]
[BlackElo "1519"]
[Annotator "NA RC"]
[PlyCount "110"]
[EventDate "2024.01.20"]
[EventType "swiss"]
[EventCountry "IND"]
[SourceTitle "playchess.com"]
[Source "ChessBase"]
[SourceQuality "1"]
[TimeControl "3600+30"]

1. Nf3 {[%emt 0:03:03]} Nf6 {[%emt 0:00:12]} 2. c4 {[%emt 0:00:09]} e6 {[%emt 0:00:07]} 3. b3 {[%emt 0:00:12]} d5 {[%emt 0:00:23]} 4. Bb2 {[%emt 0:00:10]} Bd6 {[%emt 0:01:25]} 5. e3 {[%emt 0:00:09]} O-O {[%emt 0:00:45]} 6. Be2 {[%emt 0:00:13]} b6 {[%emt 0:01:54]} 7. O-O {[%emt 0:00:19]} Bb7 {[%emt 0:00:55]} 8. Nc3 {[%emt 0:00:39]} Nbd7 {[%emt 0:05:14]} 9. Rc1 {[%emt 0:00:37]} c5 {[%emt 0:01:31]} 10. d4 {[%emt 0:00:33]} cxd4 {[%emt 0:04:50]} 11. Nxd4 {[%emt 0:00:24]} Qe7 {[%emt 0:15:54]} 12. Bf3 {[%emt 0:10:58]} Ne5 {[%emt 0:02:02]} 13. cxd5 {[%emt 0:02:56]} Nxf3+ {[%emt 0:00:53]} 14. Qxf3 {[%emt 0:00:46]} Nxd5 {[%emt 0:00:47]} 15. Nxd5 {[%emt 0:13:00]} Bxd5 {[%emt 0:00:10]} 16. e4 {[%emt 0:01:05]} Qh4 {[%emt 0:01:18]} 17. Rfe1 {[%emt 0:01:45]} Qxh2+ {[%emt 0:01:17]} 18. Kf1 {[%emt 0:00:06]} Bb7 {[%emt 0:01:03]} 19. Qd3 {[%emt 0:04:54]} Rad8 {[%emt 0:09:52]} 20. Nf3 {[%emt 0:08:43]} Bb4 {[%emt 0:02:15]} 21. Qxd8 {[%emt 0:02:37]} Ba6+ {[%emt 0:00:21]} 22. Rc4 {[%emt 0:00:12]} Bxc4+ {[%emt 0:00:09]} 23. bxc4 {[%emt 0:00:06]} Qh1+ {[%emt 0:00:42]} 24. Ke2 {[%emt 0:00:07]} Qxe1+ {[%emt 0:00:09]} 25. Nxe1 {[%emt 0:00:09]} Rxd8 {[%emt 0:00:03]} 26. Nd3 {[%emt 0:00:12]} Bc5 {[%emt 0:00:59]} 27. Nxc5 {[%emt 0:05:21]} bxc5 {[%emt 0:00:07]} 28. f4 {[%emt 0:00:32]} f6 {[%emt 0:00:25]} 29. g4 {[%emt 0:00:15]} Kf7 {[%emt 0:01:32]} 30. Ke3 {[%emt 0:01:22]} a6 {[%emt 0:03:19]} 31. Ba3 {[%emt 0:00:54]} Rd4 {[%emt 0:00:33]} 32. Bxc5 {[%emt 0:00:12]} Rxc4 {[%emt 0:00:05]} 33. Bd6 {[%emt 0:00:05]} Rc3+ {[%emt 0:00:29]} 34. Kd4 {[%emt 0:00:23]} Rg3 {[%emt 0:00:58]} 35. a4 {[%emt 0:00:20]} Rxg4 {[%emt 0:00:26]} 36. Kc5 {[%emt 0:00:02]} h5 {[%emt 0:00:19]} 37. Kb6 {[%emt 0:00:07]} h4 {[%emt 0:00:20]} 38. f5 {[%emt 0:00:06]} e5 {[%emt 0:00:33]} 39. Kxa6 {[%emt 0:00:18]} h3 {[%emt 0:00:08]} 40. Kb7 {[%emt 0:00:22]} h2 {[%emt 0:00:11]} 41. a5 {[%emt 0:00:07]} h1=Q {[%emt 0:00:14]} 42. a6 {[%emt 0:00:08]} Rxe4 {[%emt 0:00:22]} 43. Bb8 {[%emt 0:00:41]} Rb4+ {[%emt 0:00:16]} 44. Ka7 {[%emt 0:00:15]} Qg1+ {[%emt 0:00:43]} 45. Ka8 {[%emt 0:00:08]} Qg2+ {[%emt 0:00:10]} 46. Ka7 {[%emt 0:00:05]} Qf2+ {[%emt 0:00:04]} 47. Ka8 {[%emt 0:00:04]} Qf3+ {[%emt 0:00:05]} 48. Ka7 {[%emt 0:00:05]} Qe3+ {[%emt 0:00:03]} 49. Ka8 {[%emt 0:00:06]} Qe4+ {[%emt 0:00:08]} 50. Ka7 {[%emt 0:00:03]} Qd4+ {[%emt 0:00:06]} 51. Ka8 {[%emt 0:00:04]} Qd5+ {[%emt 0:00:02]} 52. Ka7 {[%emt 0:00:05]} Qc5+ {[%emt 0:00:09]} 53. Ka8 {[%emt 0:00:04]} Qc6+ {[%emt 0:00:04]} 54. Ka7 {[%emt 0:00:06]} Qb6+ {[%emt 0:00:03]} 55. Ka8 {[%emt 0:00:26]} Qxb8# {[%emt 0:00:03]} 0-1

[Event "1st Bangalore GM-Open-B 2024"]
[Site "Bangalore"]
[Date "2024.01.19"]
[Round "3.2"]
[White "Samyak Dharewa"]
[Black "Vivaan Sachdev"]
[Result "1-0"]
[ECO "C00"]
[WhiteElo "1972"]
[BlackElo "1516"]
[Annotator "NA RC"]
[PlyCount "64"]
[EventDate "2024.01.20"]
[EventType "swiss"]
[EventCountry "IND"]
[SourceTitle "playchess.com"]
[Source "ChessBase"]
[SourceQuality "1"]
[TimeControl "3600+30"]

1. e4 {[%emt 0:00:03]} e6 {[%emt 0:02:35]} 2. Nf3 {[%emt 0:00:02]} d5 {[%emt 0:00:08]} 3. Nc3 {[%emt 0:00:02]} d4 {[%emt 0:00:13]} 4. Ne2 {[%emt 0:00:02]} c5 {[%emt 0:00:11]} 5. c3 {[%emt 0:00:03]} Nf6 {[%emt 0:00:11]} 6. e5 {[%emt 0:00:01]} Nfd7 {[%emt 0:00:06]} 7. cxd4 {[%emt 0:00:07]} cxd4 {[%emt 0:00:04]} 8. Nexd4 {[%emt 0:00:09]} Nxe5 {[%emt 0:00:06]} 9. Bb5+ {[%emt 0:00:08]} Nec6 {[%emt 0:00:18]} 10. Nc2 {[%emt 0:00:09]} Bd7 {[%emt 0:07:00]} 11. Bc4 {[%emt 0:00:07]} Nb4 {[%emt 0:05:18]} 12. Ne3 {[%emt 0:00:49]} Bc6 {[%emt 0:03:37]} 13. d4 {[%emt 0:11:04]} Nd5 {[%emt 0:12:25]} 14. O-O {[%emt 0:01:04]} Be7 {[%emt 0:04:24]} 15. Ne5 {[%emt 0:01:02]} Nb6 {[%emt 0:02:39]} 16. Bxe6 {[%emt 0:07:19]} fxe6 {[%emt 0:06:05]} 17. Qh5+ {[%emt 0:00:02]} g6 {[%emt 0:00:15]} 18. Nxg6 {[%emt 0:00:06]} Kd7 {[%emt 0:03:11]} 19. Ne5+ {[%emt 0:00:07]} Kc8 {[%emt 0:02:04]} 20. Qh3 {[%emt 0:00:23]} Qg8 21. f4 {[%emt 0:07:00]} N8d7 {[%emt 0:10:46]} 22. Nxc6 {[%emt 0:05:36]} bxc6 {[%emt 0:00:21]} 23. f5 {[%emt 0:00:03]} exf5 {[%emt 0:05:14]} 24. Nxf5 {[%emt 0:00:08]} Bf6 {[%emt 0:00:10]} 25. Bf4 {[%emt 0:01:58]} Qd5 {[%emt 0:03:22]} 26. Be5 {[%emt 0:01:12]} Kd8 {[%emt 0:01:45]} 27. Ne3 {[%emt 0:05:37]} Qf7 {[%emt 0:00:58]} 28. Ng4 {[%emt 0:00:21]} Nd5 {[%emt 0:00:18]} 29. Nxf6 {[%emt 0:00:07]} N5xf6 {[%emt 0:00:41]} 30. Bxf6+ {[%emt 0:00:03]} Nxf6 {[%emt 0:00:03]} 31. Qf3 {[%emt 0:00:12]} Rf8 {[%emt 0:01:01]} 32. Qxc6 {[%emt 0:00:09]} Rc8 {[%emt 0:00:40]} 1-0

[Event "1st Bangalore GM-Open-B 2024"]
[Site "Bangalore"]
[Date "2024.01.19"]
[Round "3.3"]
[White "Abeer Nandrajog"]
[Black "Nadkarni, Ishan"]
[Result "1-0"]
[ECO "C01"]
[WhiteElo "1506"]
[BlackElo "1968"]
[Annotator "NA RC"]
[PlyCount "139"]
[EventDate "2024.01.20"]
[EventType "swiss"]
[EventCountry "IND"]
[SourceTitle "playchess.com"]
[Source "ChessBase"]
[SourceQuality "1"]
[TimeControl "3600+30"]

1. e4 {[%emt 0:00:03]} e6 {[%emt 0:02:06]} 2. d4 {[%emt 0:00:12]} d5 {[%emt 0:00:44]} 3. Nc3 {[%emt 0:00:07]} Bb4 {[%emt 0:00:04]} 4. exd5 {[%emt 0:00:22]} exd5 {[%emt 0:00:48]} 5. Bd3 {[%emt 0:00:08]} Nc6 {[%emt 0:01:10]} 6. Be3 {[%emt 0:00:28]} Nge7 {[%emt 0:01:04]} 7. Qf3 {[%emt 0:00:14]} Be6 {[%emt 0:00:41]} 8. Nge2 {[%emt 0:03:16]} Qd7 {[%emt 0:00:53]} 9. h3 {[%emt 0:00:53]} Nf5 {[%emt 0:02:00]} 10. g4 {[%emt 0:05:32]} Nxe3 {[%emt 0:02:02]} 11. fxe3 {[%emt 0:00:10]} O-O-O {[%emt 0:01:17]} 12. a3 {[%emt 0:06:20]} Ba5 {[%emt 0:01:09]} 13. b4 {[%emt 0:01:34]} Bb6 {[%emt 0:00:10]} 14. O-O-O {[%emt 0:01:33]} Ne7 {[%emt 0:05:14]} 15. Kb2 {[%emt 0:02:21]} f5 {[%emt 0:05:03]} 16. g5 {[%emt 0:00:56]} Kb8 {[%emt 0:01:44]} 17. Nf4 {[%emt 0:02:31]} c6 {[%emt 0:01:33]} 18. Na4 {[%emt 0:03:00]} Qd6 {[%emt 0:07:36]} 19. Nc5 {[%emt 0:01:36]} Bc8 {[%emt 0:00:45]} 20. h4 {[%emt 0:06:14]} g6 {[%emt 0:00:01]} 21. c3 {[%emt 0:01:41]} Bc7 {[%emt 0:00:27]} 22. a4 {[%emt 0:01:22]} b6 {[%emt 0:00:40]} 23. Nb3 {[%emt 0:00:13]} Bd7 {[%emt 0:02:21]} 24. Ra1 {[%emt 0:00:44]} Kb7 {[%emt 0:01:51]} 25. Qe2 {[%emt 0:00:58]} Nc8 {[%emt 0:01:25]} 26. a5 {[%emt 0:03:01]} b5 {[%emt 0:00:39]} 27. Nc5+ {[%emt 0:00:23]} Ka8 {[%emt 0:00:08]} 28. Qg2 {[%emt 0:01:31]} Qe7 {[%emt 0:01:53]} 29. Nxd5 {[%emt 0:01:38]} Qd6 {[%emt 0:02:23]} 30. Nf6 {[%emt 0:02:25]} Be6 {[%emt 0:04:16]} 31. Bxb5 {[%emt 0:01:20]} Ne7 {[%emt 0:00:10]} 32. Ba4 {[%emt 0:05:39]} Nd5 {[%emt 0:06:13]} 33. Nxe6 {[%emt 0:00:40]} Qxe6 {[%emt 0:00:14]} 34. Nxd5 {[%emt 0:00:13]} cxd5 {[%emt 0:00:30]} 35. Rhe1 {[%emt 0:01:10]} Rd6 {[%emt 0:00:44]} 36. Bb3 {[%emt 0:01:13]} Kb8 {[%emt 0:00:42]} 37. Qe2 {[%emt 0:00:32]} Re8 {[%emt 0:02:57]} 38. Qb5+ {[%emt 0:03:51]} Ka8 {[%emt 0:01:43]} 39. c4 {[%emt 0:02:56]} Rb8 {[%emt 0:06:16]} 40. cxd5 {[%emt 0:00:22]} Rxb5 {[%emt 0:01:32]} 41. dxe6 {[%emt 0:00:07]} Rxb4 {[%emt 0:00:01]} 42. e7 {[%emt 0:00:28]} Rb8 {[%emt 0:00:14]} 43. e4 {[%emt 0:00:33]} f4 {[%emt 0:00:57]} 44. Kc3 {[%emt 0:01:24]} Re8 {[%emt 0:00:43]} 45. Bd5+ {[%emt 0:02:42]} Kb8 {[%emt 0:00:12]} 46. Rab1+ {[%emt 0:00:30]} Kc8 {[%emt 0:00:01]} 47. Bb7+ {[%emt 0:00:11]} Kd7 {[%emt 0:00:21]} 48. e5 {[%emt 0:00:07]} Bxa5+ {[%emt 0:00:08]} 49. Kc4 {[%emt 0:00:33]} Re6 {[%emt 0:06:30]} 50. Re4 {[%emt 0:01:28]} R6xe7 {[%emt 0:00:21]} 51. Rxf4 {[%emt 0:00:41]} Kc7 {[%emt 0:00:10]} 52. Rf6 {[%emt 0:00:40]} Bb6 {[%emt 0:00:20]} 53. Bg2 {[%emt 0:00:50]} Rd8 {[%emt 0:00:17]} 54. Rc6+ {[%emt 0:00:26]} Kb8 {[%emt 0:00:01]} 55. Rbxb6+ {[%emt 0:01:03]} axb6 {[%emt 0:00:04]} 56. Rxb6+ {[%emt 0:00:06]} Ka7 {[%emt 0:01:33]} 57. Rc6 {[%emt 0:00:13]} Kb8 {[%emt 0:01:41]} 58. Kc5 {[%emt 0:00:24]} Rc7 {[%emt 0:00:54]} 59. d5 {[%emt 0:00:40]} Rxc6+ {[%emt 0:00:28]} 60. Kxc6 {[%emt 0:00:06]} Rf8 {[%emt 0:00:07]} 61. e6 {[%emt 0:01:02]} Rc8+ {[%emt 0:00:58]} 62. Kd6 {[%emt 0:00:10]} Rd8+ {[%emt 0:00:11]} 63. Ke5 {[%emt 0:00:23]} Kc7 {[%emt 0:00:44]} 64. e7 {[%emt 0:00:17]} Rb8 {[%emt 0:00:32]} 65. d6+ {[%emt 0:00:11]} Kd7 {[%emt 0:00:14]} 66. Bh3+ {[%emt 0:00:08]} Ke8 {[%emt 0:00:02]} 67. Ke6 {[%emt 0:02:18]} Rb6 {[%emt 0:00:01]} 68. Bf1 {[%emt 0:00:20]} h5 {[%emt 0:01:42]} 69. Bb5+ {[%emt 0:00:35]} Rxb5 {[%emt 0:00:00]} 70. d7# {[%emt 0:00:08]} 1-0